fUST/lending_fUST_20260228
["ID","MTS","AMOUNT","RATE_DAILY","PERIOD"]
[406881582,1772264455542,151.0,0.00041236,120]
[406881583,1772264455617,151.0,0.00041236,120]
[406881584,1772264455780,151.0,0.00041236,120]
[406881585,1772264455947,151.0,0.00041236,120]
[406881586,1772264456015,165.941137,0.00041236,120]
[406881588,1772264473595,1433.200288,0.00041236,120]
[406881589,1772264473654,2268.591265,0.00041236,120]
[406881590,1772264473901,1433.200288,0.00041236,120]
[406881591,1772264473958,2268.591265,0.00041236,120]
[406881592,1772264474234,1433.200288,0.00041236,120]
[406881593,1772264474289,2268.591265,0.00041236,120]
[406881594,1772264474551,2268.591265,0.00041236,120]
[406881595,1772264475021,1433.200288,0.00041236,120]
[406881596,1772264475079,2268.591265,0.00041236,120]
[406881597,1772264475315,1433.200288,0.00041236,120]
[406881598,1772264475373,2268.591265,0.00041236,120]
[406881599,1772264475618,1433.200288,0.00041236,120]
[406881600,1772264475744,2268.591265,0.00041236,120]
[406881601,1772264475946,1433.200288,0.00041236,120]
[406881602,1772264476057,2268.591265,0.00041236,120]
[406881603,1772264476256,1433.200288,0.00041236,120]
[406881609,1772264476542,1433.200288,0.00041236,120]
[406881616,1772264476711,2268.591265,0.00041236,120]
[406881622,1772264476848,1433.200288,0.00041236,120]
[406881631,1772264477050,2268.591265,0.00041236,120]
[406881636,1772264477159,1433.200288,0.00041236,120]
[406881645,1772264477372,2268.591265,0.00041236,120]
[406881650,1772264477495,1433.200288,0.00041236,120]
[406881657,1772264477718,2268.591265,0.00041236,120]
[406881659,1772264477871,1433.200288,0.00041236,120]
[406881666,1772264478032,2268.591265,0.00041236,120]
[406881696,1772264478795,1433.200288,0.00041236,120]
[406881699,1772264478863,2268.591265,0.00041236,120]
[406881704,1772264478945,1433.200288,0.00041236,120]
[406881708,1772264479033,2268.591265,0.00041236,120]
[406881711,1772264479091,1433.200288,0.00041236,120]
[406881717,1772264479202,2268.591265,0.00041236,120]
[406881722,1772264479319,1433.200288,0.00041236,120]
[406881726,1772264479404,2268.591265,0.00041236,120]
[406881730,1772264479465,1433.200288,0.00041236,120]
[406881736,1772264479604,2268.591265,0.00041236,120]
[406881742,1772264479735,1433.200288,0.00041236,120]
[406881749,1772264479913,2268.591265,0.00041236,120]
[406881755,1772264480036,1433.200285,0.00041236,120]
[406881763,1772264480235,2268.591259,0.00041236,120]
[406881877,1772264483379,1000.0,0.00041236,30]
[406881887,1772264483754,255.289525,0.00041236,120]
[406883942,1772264647713,5000.0,0.000158,120]
[406883943,1772264671476,5000.0,0.000158,120]
[406884041,1772264693540,4773.47770921,0.000158,120]
[406884774,1772265032477,-576.0,0.00011119,2]
[406884775,1772265032488,-40.04125667,0.00011229,2]
[406884776,1772265032500,-459.95874333,0.00011229,2]
[406884777,1772265032510,-416.90452306,0.00011247,2]
[406884846,1772265039063,-83.09547694,0.00011247,2]
[406884847,1772265039073,-500.0,0.00011294,2]
[406884849,1772265039083,-501.04160636,0.00011428,2]
[406884851,1772265039093,-500.0,0.00011877,2]
[406884854,1772265039104,-200.0,0.00012256,2]
[406884855,1772265039114,-3272.35800091,0.00012329,2]
[406884858,1772265039126,-2002.18581178,0.00012329,2]
[406884860,1772265039140,-9509.38074695,0.00012329,2]
[406884862,1772265039149,-269.59,0.00012329,2]
[406884864,1772265039160,-224.66,0.00012329,2]
[406884866,1772265039170,-187.21,0.00012329,2]
[406884868,1772265039184,-156.01,0.00012329,2]
[406884870,1772265039194,-780.08,0.00012329,2]
[406884872,1772265039203,-500.0,0.00012585,2]
[406884874,1772265039212,-500.0,0.00012751,2]
[406884876,1772265039224,-500.0,0.00012905,2]
[406884877,1772265039237,-500.0,0.00013273,2]
[406884879,1772265039258,-500.0,0.00013273,2]
[406884881,1772265039278,-713.71423652,0.000135,2]
[406884884,1772265039288,-440.14031612,0.000135,2]
[406884885,1772265039300,-1235.9892684,0.000135,2]
[406884887,1772265039309,-2330.93987513,0.00013598,2]
[406884889,1772265039319,-430.8,0.00013599,2]
[406884891,1772265039329,-275.8847889,0.00013689,2]
[406884893,1772265039339,-278.80882526,0.00013697,2]
[406884895,1772265039348,-195.16617768,0.00013697,2]
[406884898,1772265039358,-500.0,0.00013697,2]
[406884900,1772265039368,-500.0,0.00013697,2]
[406884901,1772265039378,-500.0,0.00013697,2]
[406884903,1772265039388,-619.32706101,0.00013697,2]
[406884906,1772265039398,-500.0,0.00013697,2]
[406884907,1772265039407,-500.0,0.00013697,2]
[406884909,1772265039416,-224.21382315,0.00013697,2]
[406884911,1772265039425,-500.0,0.00013697,2]
[406884913,1772265039434,-528.49575626,0.00013697,2]
[406884915,1772265039443,-207.71562539,0.00013698,2]
[406884918,1772265039452,-500.0,0.00013698,2]
[406884920,1772265039461,-500.0,0.00013698,2]
[406884922,1772265039471,-500.0,0.00013698,2]
[406884923,1772265039480,-500.0,0.00013698,2]
[406884926,1772265039490,-299.53822537,0.00013698,2]
[406884927,1772265039499,-249.6151878,0.00013698,2]
[406884929,1772265039509,-500.0,0.00013698,2]
[406884931,1772265039519,-500.0,0.00013698,2]
[406884934,1772265039529,-500.0,0.00013698,2]
[406884935,1772265039538,-500.0,0.00013698,2]
[406884938,1772265039548,-476.60265397,0.00013698,2]
[406884940,1772265039558,-500.0,0.00013698,2]
[406884942,1772265039567,-500.0,0.00013698,2]
[406884944,1772265039577,-373.8881257,0.00013698,2]
[406884945,1772265039586,-664.69000125,0.00013698,2]
[406884947,1772265039596,-1009.98,0.00013698,2]
[406884950,1772265039605,-500.0,0.00013698,2]
[406884952,1772265039615,-500.0,0.00013698,2]
[406884954,1772265039624,-500.0,0.00013698,2]
[406884956,1772265039634,-672.78,0.00013698,2]
[406884958,1772265039645,-500.0,0.00013698,2]
[406884960,1772265039655,-500.0,0.00013698,2]
[406884961,1772265039664,-657.68,0.00013698,2]
[406884963,1772265039673,-500.0,0.00013698,2]
[406884966,1772265039683,-583.86374392,0.00013698,2]
[406884968,1772265039692,-603.88,0.00013698,2]
[406884969,1772265039701,-500.0,0.00013698,2]
[406884972,1772265039711,-500.0,0.00013698,2]
[406884974,1772265039720,-500.0,0.00013698,2]
[406884975,1772265039730,-1104.7,0.00013698,2]
[406884977,1772265039739,-500.0,0.00013698,2]
[406884979,1772265039748,-2185.29,0.00013698,2]
[406884981,1772265039758,-500.0,0.00013698,2]
[406884983,1772265039767,-500.0,0.00013698,2]
[406884985,1772265039782,-956.14,0.00013698,2]
[406884987,1772265039796,-500.0,0.00013698,2]
[406884989,1772265039804,-1100.81,0.00013698,2]
[406884991,1772265039814,-506.5,0.00013698,2]
[406884994,1772265039823,-500.0,0.00013698,2]
[406884996,1772265039832,-500.0,0.00013698,2]
[406884998,1772265039842,-500.0,0.00013698,2]
[406885000,1772265039851,-500.0,0.00013698,2]
[406885002,1772265039861,-500.0,0.00013698,2]
[406885004,1772265039870,-500.0,0.00013698,2]
[406885006,1772265039879,-500.0,0.00013698,2]
[406885008,1772265039889,-500.0,0.00013698,2]
[406885010,1772265039898,-672.83,0.00013698,2]
[406885012,1772265039907,-500.0,0.00013698,2]
[406885014,1772265039917,-500.0,0.00013698,2]
[406885016,1772265039926,-500.0,0.00013698,2]
[406885018,1772265039936,-500.0,0.00013698,2]
[406885020,1772265039946,-500.0,0.00013698,2]
[406885022,1772265039956,-500.0,0.00013698,2]
[406885024,1772265039966,-500.0,0.00013698,2]
[406885026,1772265039975,-500.0,0.00013698,2]
[406885028,1772265039985,-500.0,0.00013698,2]
[406885030,1772265039995,-500.0,0.00013698,2]
[406885032,1772265040004,-650.74,0.00013698,2]
[406885034,1772265040013,-1170.9,0.00013698,2]
[406885036,1772265040023,-500.0,0.00013698,2]
[406885038,1772265040031,-359.08642457,0.00013698,2]
[406885040,1772265040041,-500.0,0.00013698,2]
[406885042,1772265040050,-1566.15,0.00013698,2]
[406885044,1772265040060,-575.10974709,0.00013698,2]
[406885046,1772265040070,-500.0,0.00013698,2]
[406885048,1772265040079,-500.0,0.00013698,2]
[406885050,1772265040089,-500.0,0.00013698,2]
[406885052,1772265040098,-500.0,0.00013698,2]
[406885054,1772265040107,-1181.96,0.00013698,2]
[406885057,1772265040118,-500.0,0.00013698,2]
[406885059,1772265040127,-500.0,0.00013698,2]
[406885060,1772265040136,-572.96,0.00013698,2]
[406885083,1772265040342,-500.0,0.00013698,2]
[406885086,1772265040358,-1193.54,0.00013698,2]
[406885088,1772265040368,-500.0,0.00013698,2]
[406885090,1772265040377,-500.0,0.00013698,2]
[406885092,1772265040387,-500.0,0.00013698,2]
[406885094,1772265040396,-1188.8,0.00013698,2]
[406885096,1772265040406,-512.28,0.00013698,2]
[406885098,1772265040415,-2866.49,0.00013698,2]
[406885100,1772265040424,-500.0,0.00013698,2]
[406885102,1772265040434,-566.75921401,0.00013698,2]
[406885104,1772265040443,-500.0,0.00013698,2]
[406885106,1772265040453,-657.11,0.00013698,2]
[406885108,1772265040462,-1000.0,0.00013698,2]
[406885110,1772265040471,-500.0,0.00013698,2]
[406885112,1772265040481,-768.49,0.00013698,2]
[406885113,1772265040490,-479.85816561,0.00013698,2]
[406885116,1772265040500,-712.16,0.00013698,2]
[406885118,1772265040510,-3547.15,0.00013698,2]
[406885119,1772265040519,-500.0,0.00013698,2]
[406885121,1772265040529,-500.0,0.00013698,2]
[406885123,1772265040538,-500.0,0.00013698,2]
[406885125,1772265040547,-500.0,0.00013698,2]
[406885127,1772265040557,-500.0,0.00013698,2]
[406885129,1772265040566,-500.0,0.00013698,2]
[406885131,1772265040575,-500.0,0.00013698,2]
[406885133,1772265040586,-500.0,0.00013698,2]
[406885135,1772265040595,-1016.37,0.00013698,2]
[406885137,1772265040605,-1366.12,0.00013698,2]
[406885139,1772265040614,-500.0,0.00013698,2]
[406885141,1772265040623,-2640.33,0.00013698,2]
[406885143,1772265040633,-901.49,0.00013698,2]
[406885145,1772265040644,-1156.39,0.00013698,2]
[406885147,1772265040653,-1078.29,0.00013698,2]
[406885149,1772265040662,-630.28,0.00013698,2]
[406885151,1772265040672,-1011.81,0.00013698,2]
[406885153,1772265040681,-500.0,0.00013698,2]
[406885155,1772265040690,-1362.44,0.00013698,2]
[406885157,1772265040700,-500.0,0.00013698,2]
[406885159,1772265040709,-500.0,0.00013698,2]
[406885162,1772265040718,-500.0,0.00013698,2]
[406885164,1772265040728,-525.12604905,0.00013698,2]
[406885166,1772265040737,-500.0,0.00013698,2]
[406885168,1772265040747,-500.0,0.00013698,2]
[406885170,1772265040756,-2571.34,0.00013698,2]
[406885172,1772265040765,-500.0,0.00013698,2]
[406885174,1772265040774,-500.0,0.00013698,2]
[406885176,1772265040783,-1090.72,0.00013698,2]
[406885178,1772265040792,-500.0,0.00013698,2]
[406885180,1772265040802,-500.0,0.00013698,2]
[406885182,1772265040812,-768.48,0.00013698,2]
[406885184,1772265040821,-500.0,0.00013698,2]
[406885186,1772265040830,-2672.69,0.00013698,2]
[406885188,1772265040840,-500.0,0.00013698,2]
[406885190,1772265040850,-500.0,0.00013698,2]
[406885192,1772265040860,-622.57,0.00013698,2]
[406885194,1772265040869,-500.0,0.00013698,2]
[406885196,1772265040879,-500.0,0.00013698,2]
[406885198,1772265040889,-396.39666814,0.00013698,2]
[406885200,1772265040899,-500.0,0.00013698,2]
[406885202,1772265040908,-500.0,0.00013698,2]
[406885204,1772265040917,-996.53,0.00013698,2]
[406885206,1772265040927,-500.0,0.00013698,2]
[406885208,1772265040936,-869.15,0.00013698,2]
[406885210,1772265040946,-500.0,0.00013698,2]
[406885212,1772265040955,-500.0,0.00013698,2]
[406885214,1772265040965,-944.03,0.00013698,2]
[406885216,1772265040975,-500.0,0.00013698,2]
[406885218,1772265040984,-500.0,0.00013698,2]
[406885220,1772265040993,-341.8845266,0.00013698,2]
[406885223,1772265041012,-500.0,0.00013698,2]
[406885225,1772265041026,-500.0,0.00013698,2]
[406885227,1772265041036,-500.0,0.00013698,2]
[406885229,1772265041046,-613.29,0.00013698,2]
[406885232,1772265041056,-500.0,0.00013698,2]
[406885234,1772265041067,-624.17813655,0.00013698,2]
[406885236,1772265041077,-500.0,0.00013698,2]
[406885238,1772265041087,-500.0,0.00013698,2]
[406885240,1772265041098,-500.0,0.00013698,2]
[406885242,1772265041108,-500.0,0.00013698,2]
[406885244,1772265041120,-83.91069358,0.00013698,2]
[406885247,1772265041145,-416.08930642,0.00013698,2]
[406885249,1772265041156,-456.75053967,0.00013698,2]
[406885286,1772265041672,-43.24946033,0.00013698,2]
[406885288,1772265041682,-675.29,0.00013698,2]
[406885290,1772265041691,-726.9,0.00013698,2]
[406885292,1772265041701,-500.0,0.00013698,2]
[406885294,1772265041711,-938.16,0.00013698,2]
[406885296,1772265041721,-500.0,0.00013698,2]
[406885298,1772265041730,-3226.93,0.00013698,2]
[406885300,1772265041740,-500.0,0.00013698,2]
[406885302,1772265041749,-500.0,0.00013698,2]
[406885304,1772265041759,-500.0,0.00013698,2]
[406885306,1772265041768,-500.0,0.00013698,2]
[406885308,1772265041777,-500.0,0.00013698,2]
[406885309,1772265041787,-500.0,0.00013698,2]
[406885312,1772265041797,-670.06,0.00013698,2]
[406885314,1772265041807,-500.0,0.00013698,2]
[406885316,1772265041817,-500.0,0.00013698,2]
[406885318,1772265041827,-500.0,0.00013698,2]
[406885320,1772265041838,-891.81,0.00013698,2]
[406885322,1772265041847,-246.84948647,0.00013698,2]
[406885324,1772265041858,-500.0,0.00013698,2]
[406885326,1772265041868,-500.0,0.00013698,2]
[406885328,1772265041878,-500.0,0.00013698,2]
[406885329,1772265041888,-892.88,0.00013698,2]
[406885332,1772265041899,-500.0,0.00013698,2]
[406885334,1772265041908,-500.0,0.00013698,2]
[406885336,1772265041918,-5819.37,0.00013698,2]
[406885337,1772265041928,-1648.08,0.00013698,2]
[406885339,1772265041937,-638.2,0.00013698,2]
[406885342,1772265041947,-500.0,0.00013698,2]
[406885344,1772265041957,-682.38,0.00013698,2]
[406885346,1772265041967,-1761.81,0.00013698,2]
[406885348,1772265041976,-697.04,0.00013698,2]
[406885350,1772265041986,-500.0,0.00013698,2]
[406885352,1772265041996,-379.82741544,0.00013698,2]
[406885354,1772265042005,-827.59,0.00013698,2]
[406885355,1772265042015,-709.54,0.00013698,2]
[406885358,1772265042025,-351.68458222,0.00013698,2]
[406885764,1772265047578,-148.31541778,0.00013698,2]
[406885766,1772265047593,-500.0,0.00013698,2]
[406885768,1772265047603,-443.18342825,0.00013698,2]
[406885769,1772265047614,-1109.03,0.00013698,2]
[406885771,1772265047626,-754.09,0.00013698,2]
[406885773,1772265047636,-622.2,0.00013698,2]
[406885774,1772265047647,-718.48,0.00013698,2]
[406885775,1772265047657,-5863.14,0.00013698,2]
[406885777,1772265047667,-500.0,0.00013698,2]
[406885779,1772265047677,-500.0,0.00013698,2]
[406885781,1772265047687,-1190.16,0.00013698,2]
[406885784,1772265047698,-500.0,0.00013698,2]
[406885786,1772265047708,-1854.64,0.00013698,2]
[406885788,1772265047718,-500.0,0.00013698,2]
[406885790,1772265047728,-1174.96,0.00013698,2]
[406885792,1772265047738,-500.0,0.00013698,2]
[406885793,1772265047749,-501.93,0.00013698,2]
[406885794,1772265047759,-500.0,0.00013698,2]
[406885795,1772265047770,-1453.19477064,0.00013698,2]
[406885799,1772265047803,-75.81522936,0.00013698,2]
[406885800,1772265047813,-387.52116044,0.00013698,2]
[406885824,1772265274134,2864.14985504,0.000158,10]
[406885867,1772266054631,5000.0,9.501e-05,2]
[406885868,1772266076339,5000.0,9.501e-05,2]
[406885869,1772266085634,2090.3563403,9.501e-05,2]
[406885870,1772266100400,4318.87585288,9.501e-05,2]
[406886253,1772266232645,-5000.0,9.606e-05,2]
[406886255,1772266232655,-182.45218026,9.753e-05,2]
[406886257,1772266232664,-200.0,9.932e-05,2]
[406886258,1772266232673,-300.0,9.999e-05,2]
[406886259,1772266232683,-1200.0,9.999e-05,2]
[406886260,1772266232692,-191.9936613,0.0001,2]
[406886261,1772266232701,-487.77836994,0.0001,2]
[406886262,1772266232710,-1043.99663585,0.0001,2]
[406886263,1772266232719,-946.02937292,0.0001,2]
[406886264,1772266232730,-24793.19558494,0.0001,2]
[406886427,1772266238986,-1541.97256442,0.0001,2]
[406886431,1772266239007,-10911.93372711,0.0001,2]
[406886433,1772266239021,-1258.86486592,0.0001,2]
[406886435,1772266239034,-705.88583409,0.0001,2]
[406886439,1772266239060,-129256.1180506,0.0001,2]
[406886441,1772266239068,-5877.92541267,0.00010199,2]
[406886443,1772266239077,-300.0,0.00010199,2]
[406886445,1772266239086,-300.0,0.00010199,2]
[406886447,1772266239095,-300.0,0.00010199,2]
[406886449,1772266239104,-300.0,0.00010199,2]
[406886451,1772266239113,-300.0,0.00010199,2]
[406886453,1772266239122,-300.0,0.00010199,2]
[406886455,1772266239131,-300.0,0.00010199,2]
[406886457,1772266239141,-300.0,0.00010199,2]
[406886459,1772266239150,-300.0,0.00010199,2]
[406886461,1772266239158,-300.0,0.00010199,2]
[406886463,1772266239167,-300.0,0.00010199,2]
[406886465,1772266239176,-300.0,0.00010199,2]
[406886467,1772266239185,-300.0,0.00010199,2]
[406886469,1772266239193,-300.0,0.00010199,2]
[406886471,1772266239203,-300.0,0.00010199,2]
[406886473,1772266239211,-600.0,0.00010402,2]
[406886475,1772266239220,-420.0,0.00010999,2]
[406886477,1772266239229,-625.0,0.00010999,2]
[406886479,1772266239238,-880.2572831,0.00011077,2]
[406886481,1772266239247,-720.0,0.00011442,2]
[406886483,1772266239255,-500.0,0.00011638,2]
[406886485,1772266239264,-500.0,0.00011737,2]
[406886487,1772266239274,-215.29357271,0.00011753,2]
[406886489,1772266239283,-500.70078617,0.00012001,2]
[406886491,1772266239291,-171.0,0.00012099,2]
[406886493,1772266239300,-1509.0382168,0.00012192,2]
[406886495,1772266239309,-194.42977784,0.00012199,2]
[406886683,1772266241115,-305.57022216,0.00012199,2]
[406886685,1772266241124,-876.69,0.00012329,2]
[406886687,1772266241133,-3915.4157924,0.0001247,2]
[406886689,1772266241142,-864.0,0.00012586,2]
[406886691,1772266241151,-1947.34270698,0.00012956,2]
[406886693,1772266241162,-92.22968373,0.00012956,2]
[406886695,1772266241171,-210.5504623,0.00013012,2]
[406886998,1772266244061,-200.0,0.00010192,2]
[406887000,1772266244070,-39.4495377,0.00013012,2]
[406887002,1772266244079,-250.0,0.00013012,2]
[406887004,1772266244088,-500.0,0.00013012,2]
[406887006,1772266244097,-478.74241238,0.00013012,2]
[406887028,1772266244289,-156.587,0.00013012,2]
[406887030,1772266244298,-250.0,0.00013012,2]
[406887032,1772266244307,-500.0,0.00013012,2]
[406887034,1772266244316,-500.0,0.00013012,2]
[406887036,1772266244325,-250.0,0.00013012,2]
[406887039,1772266244334,-207.14090265,0.00013012,2]
[406887040,1772266244344,-187.78006525,0.00013012,2]
[406887043,1772266244353,-194.72792766,0.00013012,2]
[406887045,1772266244362,-500.0,0.00013012,2]
[406887047,1772266244371,-201.93286099,0.00013012,2]
[406887049,1772266244380,-500.0,0.00013012,2]
[406887052,1772266244389,-621.78829552,0.00013012,2]
[406887054,1772266244398,-500.0,0.00013012,2]
[406887056,1772266244407,-209.40437684,0.00013012,2]
[406887058,1772266244416,-217.15233878,0.00013012,2]
[406887060,1772266244425,-500.0,0.00013012,2]
[406887061,1772266244434,-225.18697532,0.00013012,2]
[406887063,1772266244443,-280.75896633,0.00013012,2]
[406887065,1772266244451,-233.51889341,0.00013012,2]
[406887067,1772266244460,-2487.15318209,0.00013012,2]
[406887069,1772266244469,-242.15909246,0.00013012,2]
[406887071,1772266244478,-251.11897888,0.00013012,2]
[406887073,1772266244488,-260.4103811,0.00013012,2]
[406887075,1772266244496,-270.0455652,0.00013012,2]
[406887077,1772266244505,-280.03725112,0.00013012,2]
[406887079,1772266244514,-290.39862941,0.00013012,2]
[406887081,1772266244523,-301.1433787,0.00013012,2]
[406887083,1772266244532,-187.78006526,0.00013012,2]
[406887085,1772266244541,-250.0,0.00013012,2]
[406887086,1772266244550,-322.66841109,0.00013199,2]
[406887087,1772266244569,-177.33158891,0.00013199,2]
[406887088,1772266244577,-107.66841109,0.00013203,2]
[406887089,1772266244598,-260.33158891,0.00013203,2]
[406887090,1772266244607,-179.506,0.00013265,2]
[406887091,1772266244615,-318.45822743,0.00013272,2]
[406887092,1772266244625,-443.34357321,0.00013273,2]
[406887093,1772266244636,-500.0,0.00013273,2]
[406887094,1772266244646,-500.0,0.00013273,2]
[406887095,1772266244655,-368.0,0.00013283,2]
[406887097,1772266244664,-500.0,0.00013289,2]
[406887099,1772266244673,-14513.41,0.00013447,6]
[406887101,1772266244683,-2039.57239071,0.00013474,2]
[406887103,1772266244692,-668.65185758,0.0001356,2]
[406887105,1772266244700,-2579.17784983,0.0001356,2]
[406887107,1772266244709,-500.0,0.0001357,2]
[406887109,1772266244718,-1298.0,0.00013584,2]
[406887111,1772266244727,-5000.0,0.000136,2]
[406887113,1772266244736,-250.0,0.0001369,2]
[406887115,1772266244745,-292.86174089,0.0001369,2]
[406887117,1772266244754,-250.0,0.0001369,2]
[406887119,1772266244763,-9799.90859233,0.00013698,2]
[406887121,1772266244772,-500.0,0.00013698,2]
[406887123,1772266244781,-500.0,0.00013698,2]
[406887125,1772266244790,-500.0,0.00013698,2]
[406887128,1772266244800,-500.0,0.00013698,2]
[406887130,1772266244808,-500.0,0.00013698,2]
[406887132,1772266244817,-11034.727102,0.00013698,2]
[406887134,1772266244826,-500.0,0.00013698,2]
[406887136,1772266244835,-288.48744316,0.00013698,2]
[406887137,1772266244845,-500.0,0.00013698,2]
[406887139,1772266244854,-850.7181578,0.00013698,2]
[406887141,1772266244862,-904.69,0.00013698,2]
[406887143,1772266244871,-500.0,0.00013698,2]
[406887145,1772266244880,-633.67472847,0.00013698,2]
[406887148,1772266244889,-500.0,0.00013698,2]
[406887150,1772266244899,-500.0,0.00013698,2]
[406887152,1772266244908,-500.0,0.00013698,2]
[406887153,1772266244917,-500.0,0.00013698,2]
[406887156,1772266244927,-540.1,0.00013698,2]
[406887157,1772266244936,-500.0,0.00013698,2]
[406887159,1772266244945,-500.0,0.00013698,2]
[406887161,1772266244954,-500.0,0.00013698,2]
[406887163,1772266244963,-500.0,0.00013698,2]
[406887165,1772266244972,-500.0,0.00013698,2]
[406887167,1772266244981,-797.64,0.00013698,2]
[406887170,1772266244990,-1010.59,0.00013698,2]
[406887171,1772266245000,-1114.93,0.00013698,2]
[406887173,1772266245009,-500.0,0.00013698,2]
[406887175,1772266245018,-500.0,0.00013698,2]
[406887177,1772266245027,-500.0,0.00013698,2]
[406887179,1772266245036,-500.0,0.00013698,2]
[406887181,1772266245045,-550.89,0.00013698,2]
[406887183,1772266245054,-513.18,0.00013698,2]
[406887185,1772266245063,-834.79,0.00013698,2]
[406887187,1772266245072,-500.0,0.00013698,2]
[406887189,1772266245081,-500.0,0.00013698,2]
[406887191,1772266245090,-500.0,0.00013698,2]
[406887193,1772266245099,-500.0,0.00013698,2]
[406887195,1772266245108,-938.16,0.00013698,2]
[406887198,1772266245118,-500.0,0.00013698,2]
[406887200,1772266245127,-2895.28,0.00013698,2]
[406887202,1772266245136,-530.46,0.00013698,2]
[406887204,1772266245145,-500.0,0.00013698,2]
[406887205,1772266245154,-500.0,0.00013698,2]
[406887208,1772266245163,-500.0,0.00013698,2]
[406887210,1772266245172,-500.0,0.00013698,2]
[406887212,1772266245181,-827.59,0.00013698,2]
[406887214,1772266245190,-500.0,0.00013698,2]
[406887216,1772266245199,-500.0,0.00013698,2]
[406887218,1772266245209,-500.0,0.00013698,2]
[406887220,1772266245218,-500.0,0.00013698,2]
[406887221,1772266245227,-500.0,0.00013698,2]
[406887223,1772266245235,-638.2,0.00013698,2]
[406887225,1772266245244,-500.0,0.00013698,2]
[406887228,1772266245254,-500.0,0.00013698,2]
[406887230,1772266245263,-712.05,0.00013698,2]
[406887231,1772266245272,-1648.08,0.00013698,2]
[406887233,1772266245280,-1221.99,0.00013698,2]
[406887235,1772266245289,-697.04,0.00013698,2]
[406887237,1772266245298,-688.54,0.00013698,2]
[406887240,1772266245308,-709.54,0.00013698,2]
[406887242,1772266245317,-500.0,0.00013698,2]
[406887244,1772266245326,-1062.82,0.00013698,2]
[406887246,1772266245335,-500.0,0.00013698,2]
[406887248,1772266245343,-500.0,0.00013698,2]
[406887250,1772266245352,-501.88,0.00013698,2]
[406887252,1772266245361,-500.0,0.00013698,2]
[406887254,1772266245370,-500.0,0.00013698,2]
[406887256,1772266245379,-500.0,0.00013698,2]
[406887257,1772266245388,-500.0,0.00013698,2]
[406887259,1772266245398,-1126.0,0.00013698,2]
[406887261,1772266245408,-500.0,0.00013698,2]
[406887263,1772266245417,-500.0,0.00013698,2]
[406887265,1772266245426,-2660.5,0.00013698,2]
[406887267,1772266245436,-652.05,0.00013698,2]
[406887269,1772266245445,-500.0,0.00013698,2]
[406887271,1772266245454,-500.0,0.00013698,2]
[406887273,1772266245463,-500.0,0.00013698,2]
[406887275,1772266245472,-1733.41,0.00013698,2]
[406887277,1772266245481,-500.0,0.00013698,2]
[406887279,1772266245490,-500.0,0.00013698,2]
[406887281,1772266245499,-3948.05,0.00013698,2]
[406887283,1772266245510,-500.0,0.00013698,2]
[406887285,1772266245518,-500.0,0.00013698,2]
[406887286,1772266245527,-500.0,0.00013698,2]
[406887287,1772266245536,-1144.97,0.00013698,2]
[406887288,1772266245545,-2183.53,0.00013698,2]
[406887289,1772266245555,-500.0,0.00013698,2]